fUST/lending_fUST_20241002
["ID","MTS","AMOUNT","RATE_DAILY","PERIOD"]
[339700292,1727872238960,-501.17497356,0.00013673,2]
[339700293,1727872238970,-500.08995096,0.00013673,2]
[339700294,1727872238981,-500.34128355,0.00013673,2]
[339700295,1727872238991,-169.80942207,0.00013678,2]
[339700296,1727872239001,-15545.59307975,0.00013678,2]
[339700297,1727872239015,-9336.54242145,0.00013678,2]
[339700298,1727872239025,-12709.45757855,0.00013678,2]
[339700311,1727872240599,-500.0,0.00013673,2]
[339700312,1727872240608,-4540.64944465,0.00013678,2]
[339700313,1727872240617,-223939.219511,0.00013688,2]
[339700314,1727872240627,-172501.070232,0.00013688,2]
[339700315,1727872240637,-900.0,0.0001369,2]
[339700316,1727872240648,-225.21203693,0.00013698,2]
[339700317,1727872240658,-500.0,0.00013698,2]
[339700318,1727872240669,-500.0,0.00013698,2]
[339700319,1727872240679,-500.0,0.00013698,2]
[339700320,1727872240690,-500.0,0.00013698,2]
[339700321,1727872240702,-500.0,0.00013698,2]
[339700322,1727872240714,-500.0,0.00013698,2]
[339700323,1727872240724,-603.89825986,0.00013698,2]
[339700324,1727872240733,-500.0,0.00013698,2]
[339700325,1727872240943,-500.0,0.00013698,2]
[339700326,1727872240962,-500.0,0.00013698,2]
[339700327,1727872240972,-500.0,0.00013698,2]
[339700328,1727872240985,-1007.55,0.00013698,2]
[339700329,1727872240995,-500.0,0.00013698,2]
[339700330,1727872241005,-566.80775733,0.00013698,2]
[339700331,1727872241015,-500.0,0.00013698,2]
[339700332,1727872241025,-500.0,0.00013698,2]
[339700333,1727872241035,-500.0,0.00013698,2]
[339700334,1727872241045,-500.0,0.00013698,2]
[339700335,1727872241055,-500.0,0.00013698,2]
[339700336,1727872241065,-500.0,0.00013698,2]
[339700337,1727872241074,-500.0,0.00013698,2]
[339700338,1727872241084,-971.65,0.00013698,2]
[339700339,1727872241095,-894.9,0.00013698,2]
[339700340,1727872241107,-500.0,0.00013698,2]
[339700341,1727872241117,-501.96013667,0.00013698,2]
[339700342,1727872241128,-500.0,0.00013698,2]
[339700343,1727872241139,-500.0,0.00013698,2]
[339700344,1727872241149,-500.0,0.00013698,2]
[339700345,1727872241158,-500.0,0.00013698,2]
[339700346,1727872241168,-500.0,0.00013698,2]
[339700347,1727872241177,-500.0,0.00013698,2]
[339700348,1727872241187,-500.0,0.00013698,2]
[339700349,1727872241196,-500.0,0.00013698,2]
[339700350,1727872241206,-172.3641903,0.00013698,2]
[339700351,1727872241216,-500.0,0.00013698,2]
[339700352,1727872241225,-606.63894273,0.00013698,2]
[339700353,1727872241235,-500.0,0.00013698,2]
[339700354,1727872241244,-500.0,0.00013698,2]
[339700355,1727872241254,-500.0,0.00013698,2]
[339700356,1727872241263,-520.54245441,0.00013698,2]
[339700357,1727872241273,-500.0,0.00013698,2]
[339700358,1727872241282,-500.0,0.00013698,2]
[339700359,1727872241291,-500.0,0.00013698,2]
[339700360,1727872241300,-500.0,0.00013698,2]
[339700361,1727872241310,-500.0,0.00013698,2]
[339700362,1727872241319,-500.0,0.00013698,2]
[339700363,1727872241329,-513.02748118,0.00013698,2]
[339700364,1727872241339,-500.0,0.00013698,2]
[339700365,1727872241353,-500.0,0.00013698,2]
[339700366,1727872241367,-522.52,0.00013698,2]
[339700367,1727872241377,-500.0,0.00013698,2]
[339700368,1727872241386,-500.0,0.00013698,2]
[339700369,1727872241396,-500.0,0.00013698,2]
[339700370,1727872241406,-500.0,0.00013698,2]
[339700371,1727872241415,-500.0,0.00013698,2]
[339700372,1727872241425,-500.0,0.00013698,2]
[339700373,1727872241435,-500.0,0.00013698,2]
[339700374,1727872241445,-500.0,0.00013698,2]
[339700375,1727872241455,-563.23,0.00013698,2]
[339700376,1727872241465,-626.87,0.00013698,2]
[339700377,1727872241475,-500.0,0.00013698,2]
[339700378,1727872241485,-632.75,0.00013698,2]
[339700379,1727872241496,-500.0,0.00013698,2]
[339700380,1727872241507,-500.0,0.00013698,2]
[339700381,1727872241517,-796.18,0.00013698,2]
[339700382,1727872241528,-559.25,0.00013698,2]
[339700383,1727872241539,-500.0,0.00013698,2]
[339700384,1727872241551,-500.0,0.00013698,2]
[339700385,1727872241570,-532.32,0.00013698,2]
[339700386,1727872241583,-514.39378722,0.00013698,2]
[339700387,1727872241595,-710.0,0.00013698,2]
[339700388,1727872241607,-500.0,0.00013698,2]
[339700389,1727872241618,-555.18259345,0.00013698,2]
[339700390,1727872241628,-500.0,0.00013698,2]
[339700391,1727872241639,-500.0,0.00013698,2]
[339700392,1727872241650,-500.0,0.00013698,2]
[339700393,1727872241661,-500.0,0.00013698,2]
[339700394,1727872241673,-500.0,0.00013698,2]
[339700395,1727872241683,-500.0,0.00013698,2]
[339700396,1727872241694,-500.0,0.00013698,2]
[339700397,1727872241704,-500.0,0.00013698,2]
[339700398,1727872241715,-500.0,0.00013698,2]
[339700399,1727872241725,-500.0,0.00013698,2]
[339700400,1727872241736,-500.0,0.00013698,2]
[339700401,1727872241746,-500.0,0.00013698,2]
[339700402,1727872241758,-500.0,0.00013698,2]
[339700403,1727872241767,-500.0,0.00013698,2]
[339700404,1727872241777,-594.72537688,0.00013698,2]
[339700405,1727872241788,-772.67,0.00013698,2]
[339700406,1727872241797,-500.0,0.00013698,2]
[339700407,1727872241807,-500.0,0.00013698,2]
[339700408,1727872241817,-500.0,0.00013698,2]
[339700409,1727872241827,-500.0,0.00013698,2]
[339700410,1727872241838,-830.39,0.00013698,2]
[339700411,1727872241851,-500.0,0.00013698,2]
[339700412,1727872241862,-579.49,0.00013698,2]
[339700413,1727872241872,-511.54,0.00013698,2]
[339700414,1727872241883,-500.0,0.00013698,2]
[339700415,1727872241893,-500.0,0.00013698,2]
[339700416,1727872241905,-500.0,0.00013698,2]
[339700417,1727872241915,-500.0,0.00013698,2]
[339700418,1727872241926,-514.53930188,0.00013698,2]
[339700419,1727872241936,-500.0,0.00013698,2]
[339700420,1727872241946,-631.07,0.00013698,2]
[339700421,1727872241956,-500.0,0.00013698,2]
[339700422,1727872241967,-500.0,0.00013698,2]
[339700423,1727872241978,-500.0,0.00013698,2]
[339700424,1727872241992,-500.0,0.00013698,2]
[339700425,1727872242002,-564.13251919,0.00013698,2]
[339700426,1727872242013,-500.0,0.00013698,2]
[339700427,1727872242022,-609.8432763,0.00013698,2]
[339700428,1727872242034,-500.0,0.00013698,2]
[339700429,1727872242044,-500.0,0.00013698,2]
[339700430,1727872242054,-500.0,0.00013698,2]
[339700431,1727872242067,-500.0,0.00013698,2]
[339700432,1727872242078,-500.0,0.00013698,2]
[339700433,1727872242087,-500.0,0.00013698,2]
[339700434,1727872242100,-567.58,0.00013698,2]
[339700435,1727872242110,-500.0,0.00013698,2]
[339700436,1727872242120,-500.0,0.00013698,2]
[339700437,1727872242131,-500.0,0.00013698,2]
[339700438,1727872242142,-500.0,0.00013698,2]
[339700439,1727872242153,-500.0,0.00013698,2]
[339700440,1727872242163,-500.0,0.00013698,2]
[339700441,1727872242174,-220.90792887,0.00013698,2]
[339700442,1727872242185,-500.0,0.00013698,2]
[339700443,1727872242203,-500.0,0.00013698,2]
[339700444,1727872242213,-452.08769315,0.00013698,2]
[339700445,1727872242224,-500.0,0.00013698,2]
[339700446,1727872242236,-832.93,0.00013698,2]
[339700447,1727872242248,-394.33916961,0.00013698,2]
[339700448,1727872242260,-500.0,0.00013698,2]
[339700449,1727872242270,-500.0,0.00013698,2]
[339700450,1727872242280,-500.0,0.00013698,2]
[339700451,1727872242290,-645.47,0.00013698,2]
[339700452,1727872242301,-690.06,0.00013698,2]
[339700453,1727872242312,-500.0,0.00013698,2]
[339700454,1727872242322,-500.0,0.00013698,2]
[339700455,1727872242332,-500.0,0.00013698,2]
[339700456,1727872242342,-500.0,0.00013698,2]
[339700457,1727872242356,-500.0,0.00013698,2]
[339700458,1727872242367,-724.04,0.00013698,2]
[339700459,1727872242377,-500.0,0.00013698,2]
[339700460,1727872242387,-500.0,0.00013698,2]
[339700461,1727872242399,-179.20878338,0.00013698,2]
[339700462,1727872242411,-292.41913402,0.00013698,2]
[339700463,1727872242423,-500.0,0.00013698,2]
[339700464,1727872242434,-500.0,0.00013698,2]
[339700465,1727872242446,-691.97,0.00013698,2]
[339700466,1727872242456,-500.0,0.00013698,2]
[339700467,1727872242466,-532.13,0.00013698,2]
[339700468,1727872242476,-500.0,0.00013698,2]
[339700469,1727872242488,-500.0,0.00013698,2]
[339700470,1727872242500,-500.0,0.00013698,2]
[339700471,1727872242510,-500.0,0.00013698,2]
[339700472,1727872242521,-508.7949625,0.00013698,2]
[339700473,1727872242531,-500.0,0.00013698,2]
[339700474,1727872242543,-500.0,0.00013698,2]
[339700475,1727872242554,-500.0,0.00013698,2]
[339700476,1727872242566,-532.78,0.00013698,2]
[339700477,1727872242577,-500.0,0.00013698,2]
[339700478,1727872242587,-500.0,0.00013698,2]
[339700479,1727872242599,-530.3,0.00013698,2]
[339700480,1727872242610,-500.0,0.00013698,2]
[339700481,1727872242620,-500.0,0.00013698,2]
[339700482,1727872242633,-539.36223921,0.00013698,2]
[339700483,1727872242644,-500.0,0.00013698,2]
[339700484,1727872242654,-500.0,0.00013698,2]
[339700485,1727872242664,-500.0,0.00013698,2]
[339700486,1727872242675,-500.0,0.00013698,2]
[339700487,1727872242685,-500.0,0.00013698,2]
[339700488,1727872242695,-478.91792328,0.00013698,2]
[339700489,1727872242705,-500.0,0.00013698,2]
[339700490,1727872242714,-500.0,0.00013698,2]
[339700491,1727872242724,-500.0,0.00013698,2]
[339700492,1727872242734,-500.0,0.00013698,2]
[339700493,1727872242744,-476.17638087,0.00013698,2]
[339700494,1727872242754,-500.0,0.00013698,2]
[339700495,1727872242765,-500.0,0.00013698,2]
[339700496,1727872242775,-500.0,0.00013698,2]
[339700497,1727872242787,-500.0,0.00013698,2]
[339700498,1727872242796,-500.0,0.00013698,2]
[339700499,1727872242810,-500.0,0.00013698,2]
[339700500,1727872242821,-500.0,0.00013698,2]
[339700501,1727872242831,-500.0,0.00013698,2]
[339700502,1727872242843,-500.0,0.00013698,2]
[339700503,1727872242854,-500.0,0.00013698,2]
[339700504,1727872242863,-500.0,0.00013698,5]
[339700505,1727872242873,-597.31983241,0.00013698,2]
[339700506,1727872242886,-500.0,0.00013698,2]
[339700507,1727872242896,-880.22,0.00013698,2]
[339700508,1727872242907,-500.0,0.00013698,2]
[339700509,1727872242918,-500.0,0.00013698,2]
[339700510,1727872242928,-684.26,0.00013698,2]
[339700511,1727872242939,-500.0,0.00013698,2]
[339700512,1727872242949,-500.0,0.00013698,2]
[339700513,1727872242960,-500.0,0.00013698,2]
[339700514,1727872242971,-500.0,0.00013698,2]
[339700515,1727872242984,-500.0,0.00013698,2]
[339700516,1727872242994,-500.0,0.00013698,2]
[339700517,1727872243004,-500.0,0.00013698,2]
[339700518,1727872243014,-986.47,0.00013698,2]
[339700519,1727872243024,-500.0,0.00013698,2]
[339700520,1727872243034,-500.0,0.00013698,2]
[339700521,1727872243045,-500.0,0.00013698,2]
[339700522,1727872243055,-500.0,0.00013698,2]
[339700523,1727872243065,-500.0,0.00013698,2]
[339700525,1727872243076,-500.0,0.00013698,2]
[339700526,1727872243086,-500.0,0.00013698,2]
[339700527,1727872243096,-500.0,0.00013698,2]
[339700528,1727872243107,-500.0,0.00013698,2]
[339700529,1727872243117,-370.12160072,0.00013698,2]
[339700530,1727872243127,-500.0,0.00013698,2]
[339700531,1727872243138,-538.85,0.00013698,2]
[339700532,1727872243147,-500.0,0.00013698,2]
[339700533,1727872243157,-771.01,0.00013698,2]
[339700534,1727872243167,-500.0,0.00013698,2]
[339700535,1727872243178,-500.0,0.00013698,2]
[339700536,1727872243188,-500.0,0.00013698,2]
[339700537,1727872243198,-500.0,0.00013698,2]
[339700538,1727872243208,-500.0,0.00013698,2]
[339700539,1727872243218,-842.85,0.00013698,2]
[339700540,1727872243228,-571.98,0.00013698,2]
[339700541,1727872243238,-500.0,0.00013698,2]
[339700543,1727872243248,-500.0,0.00013698,2]
[339700545,1727872243258,-686.97,0.00013698,2]
[339700546,1727872243268,-500.0,0.00013698,2]
[339700547,1727872243279,-500.0,0.00013698,2]
[339700548,1727872243288,-500.0,0.00013698,2]
[339700549,1727872243298,-500.0,0.00013698,2]
[339700550,1727872243307,-500.0,0.00013698,2]
[339700551,1727872243317,-500.0,0.00013698,2]
[339700552,1727872243327,-500.0,0.00013698,2]
[339700553,1727872243337,-499.80593305,0.00013698,2]
[339700554,1727872243348,-500.0,0.00013698,2]
[339700555,1727872243357,-500.0,0.00013698,2]
[339700556,1727872243367,-500.0,0.00013698,2]
[339700558,1727872243378,-500.0,0.00013698,2]
[339700560,1727872243388,-500.0,0.00013698,2]
[339700562,1727872243398,-1024.78,0.00013698,2]
[339700564,1727872243407,-500.0,0.00013698,2]
[339700566,1727872243417,-787.7,0.00013698,2]
[339700567,1727872243427,-914.6,0.00013698,2]
[339700568,1727872243437,-500.0,0.00013698,2]
[339700569,1727872243446,-500.0,0.00013698,2]
[339700570,1727872243456,-509.49849423,0.00013698,2]
[339700571,1727872243466,-500.0,0.00013698,2]
[339700572,1727872243476,-500.0,0.00013698,2]
[339700573,1727872243486,-500.0,0.00013698,2]
[339700575,1727872243495,-942.7,0.00013698,2]
[339700577,1727872243505,-500.0,0.00013698,2]
[339700578,1727872243515,-771.92,0.00013698,2]
[339700579,1727872243525,-500.0,0.00013698,2]
[339700580,1727872243535,-500.0,0.00013698,2]
[339700581,1727872243545,-500.0,0.00013698,2]
[339700582,1727872243555,-500.0,0.00013698,2]
[339700583,1727872243565,-500.0,0.00013698,2]
[339700584,1727872243575,-600.93,0.00013698,2]
[339700585,1727872243584,-500.0,0.00013698,2]
[339700586,1727872243595,-500.0,0.00013698,2]
[339700587,1727872243606,-966.76,0.00013698,2]
[339700588,1727872243616,-543.48,0.00013698,2]
[339700589,1727872243626,-500.0,0.00013698,2]
[339700590,1727872243636,-803.6,0.00013698,2]
[339700591,1727872243646,-500.0,0.00013698,2]
[339700592,1727872243656,-500.0,0.00013698,2]
[339700593,1727872243666,-500.0,0.00013698,2]
[339700594,1727872243676,-500.0,0.00013698,2]
[339700595,1727872243686,-500.0,0.00013698,2]
[339700597,1727872243696,-1022.49,0.00013698,2]
[339700599,1727872243705,-709.16,0.00013698,2]
[339700601,1727872243715,-600.76939852,0.00013698,2]
[339700603,1727872243725,-254.0693271,0.00013698,2]
[339700605,1727872243736,-500.0,0.00013698,2]
[339700607,1727872243746,-500.0,0.00013698,2]
[339700609,1727872243756,-500.0,0.00013698,2]
[339700611,1727872243767,-500.0,0.00013698,2]
[339700613,1727872243776,-500.0,0.00013698,2]
[339700615,1727872243786,-500.0,0.00013698,2]
[339700617,1727872243795,-500.0,0.00013698,2]
[339700619,1727872243805,-500.0,0.00013698,2]
[339700621,1727872243814,-500.0,0.00013698,2]
[339700623,1727872243824,-285.827966,0.00013698,2]
[339700626,1727872243834,-500.0,0.00013698,2]
[339700628,1727872243844,-500.0,0.00013698,2]
[339700631,1727872243855,-500.0,0.00013698,2]
[339700633,1727872243865,-500.0,0.00013698,2]
[339700635,1727872243875,-500.0,0.00013698,2]
[339700637,1727872243885,-869.66,0.00013698,2]
[339700639,1727872243894,-500.0,0.00013698,2]
[339700641,1727872243904,-500.0,0.00013698,2]
[339700642,1727872243914,-500.0,0.00013698,2]
[339700643,1727872243923,-500.0,0.00013698,2]
[339700644,1727872243933,-500.0,0.00013698,2]
[339700645,1727872243943,-500.0,0.00013698,2]
[339700646,1727872243953,-500.0,0.00013698,2]
[339700647,1727872243963,-500.0,0.00013698,2]
[339700648,1727872243973,-500.0,0.00013698,2]
[339700649,1727872243988,-500.0,0.00013698,2]
[339700650,1727872243998,-608.08,0.00013698,2]
[339700651,1727872244011,-500.0,0.00013698,2]
[339700652,1727872244022,-500.0,0.00013698,2]
[339700653,1727872244033,-500.0,0.00013698,2]
[339700654,1727872244044,-507.32149305,0.00013698,2]
[339700655,1727872244055,-500.0,0.00013698,2]
[339700656,1727872244065,-838.27,0.00013698,2]
[339700657,1727872244075,-316.48965692,0.00013698,2]
[339700658,1727872244085,-589.43,0.00013698,2]
[339700659,1727872244095,-500.0,0.00013698,2]
[339700660,1727872244105,-500.0,0.00013698,2]
[339700661,1727872244116,-500.0,0.00013698,2]
[339700662,1727872244125,-512.74600912,0.00013698,2]
[339700663,1727872244135,-800.79,0.00013698,2]
[339700664,1727872244145,-650.2,0.00013698,2]
[339700665,1727872244156,-500.0,0.00013698,2]
[339700666,1727872244166,-573.47,0.00013698,2]
[339700667,1727872244175,-500.0,0.00013698,2]
[339700668,1727872244185,-500.0,0.00013698,2]
[339700669,1727872244195,-500.0,0.00013698,2]
[339700670,1727872244204,-510.31058753,0.00013698,2]
[339700671,1727872244362,-500.0,0.00013698,2]
[339700672,1727872244393,-500.0,0.00013698,2]
[339700673,1727872244403,-500.0,0.00013698,2]
[339700674,1727872244412,-500.0,0.00013698,2]
[339700675,1727872244422,-500.0,0.00013698,2]
[339700676,1727872244431,-500.0,0.00013698,2]
[339700677,1727872244440,-524.05106056,0.00013698,2]
[339700678,1727872244449,-500.0,0.00013698,2]
[339700679,1727872244459,-500.0,0.00013698,2]
[339700680,1727872244468,-500.0,0.00013698,2]
[339700681,1727872244478,-500.0,0.00013698,2]
[339700682,1727872244487,-500.0,0.00013698,2]
[339700683,1727872244498,-500.0,0.00013698,2]
[339700684,1727872244508,-500.0,0.00013698,2]
[339700685,1727872244517,-500.0,0.00013698,2]
[339700686,1727872244527,-500.0,0.00013698,2]
[339700687,1727872244536,-503.17253,0.00013698,2]
[339700688,1727872244546,-997.19,0.00013698,2]
[339700689,1727872244555,-500.0,0.00013698,2]
[339700690,1727872244564,-207.70543948,0.00013698,2]
[339700691,1727872244573,-515.56,0.00013698,2]
[339700692,1727872244583,-519.33,0.00013698,2]
[339700693,1727872244592,-500.0,0.00013698,2]
[339700694,1727872244606,-500.0,0.00013698,2]
[339700695,1727872244616,-500.0,0.00013698,2]
[339700696,1727872244626,-500.0,0.00013698,2]
[339700697,1727872244638,-500.0,0.00013698,2]
[339700698,1727872244647,-930.79,0.00013698,2]
[339700699,1727872244658,-500.0,0.00013698,2]
[339700700,1727872244667,-500.0,0.00013698,2]
[339700701,1727872244678,-1623.32,0.00013698,2]
[339700702,1727872244688,-500.0,0.00013698,2]
[339700703,1727872244699,-500.0,0.00013698,2]
[339700704,1727872244709,-500.0,0.00013698,2]
[339700705,1727872244720,-500.0,0.00013698,2]
[339700706,1727872244731,-500.0,0.00013698,2]
[339700707,1727872244742,-500.0,0.00013698,2]
[339700708,1727872244753,-500.0,0.00013698,2]
[339700709,1727872244763,-500.0,0.00013698,2]
[339700710,1727872244773,-500.0,0.00013698,2]
[339700711,1727872244784,-500.0,0.00013698,2]
[339700712,1727872244797,-500.0,0.00013698,2]
[339700713,1727872244808,-500.0,0.00013698,2]
[339700714,1727872244817,-500.0,0.00013698,2]
[339700715,1727872244828,-500.0,0.00013698,2]
[339700716,1727872244839,-500.0,0.00013698,2]
[339700717,1727872244851,-766.74,0.00013698,2]
[339700718,1727872244862,-500.0,0.00013698,2]
[339700719,1727872244873,-500.0,0.00013698,2]
[339700720,1727872244883,-506.82714457,0.00013698,2]
[339700721,1727872244895,-500.0,0.00013698,2]
[339700722,1727872244904,-500.0,0.00013698,2]
[339700723,1727872244916,-500.0,0.00013698,2]
[339700724,1727872244925,-500.0,0.00013698,2]
[339700725,1727872244935,-227.57962737,0.00013698,2]
[339700726,1727872244945,-500.0,0.00013698,2]
[339700727,1727872244956,-707.5,0.00013698,2]
[339700728,1727872244966,-500.0,0.00013698,2]
[339700729,1727872244977,-500.0,0.00013698,2]
[339700730,1727872244992,-500.0,0.00013698,2]
[339700731,1727872245002,-500.0,0.00013698,2]
[339700732,1727872245012,-500.0,0.00013698,2]
[339700733,1727872245022,-500.0,0.00013698,2]
[339700734,1727872245032,-615.96,0.00013698,2]
[339700735,1727872245042,-643.77,0.00013698,2]
[339700736,1727872245052,-511.57,0.00013698,2]
[339700737,1727872245062,-1485.93,0.00013698,2]
[339700738,1727872245071,-500.0,0.00013698,2]
[339700739,1727872245081,-500.0,0.00013698,2]
[339700740,1727872245090,-500.0,0.00013698,2]
[339700741,1727872245102,-500.0,0.00013698,2]
[339700742,1727872245111,-500.0,0.00013698,2]
[339700743,1727872245121,-623.49752182,0.00013698,2]
[339700744,1727872245131,-500.0,0.00013698,2]
[339700745,1727872245140,-2114.63,0.00013698,2]
[339700746,1727872245150,-500.0,0.00013698,2]
[339700747,1727872245159,-694.83,0.00013698,2]
[339700748,1727872245169,-500.0,0.00013698,2]
[339700749,1727872245178,-500.0,0.00013698,2]
[339700750,1727872245187,-500.0,0.00013698,2]
[339700751,1727872245197,-500.0,0.00013698,2]
[339700752,1727872245206,-662.84,0.00013698,2]
[339700753,1727872245215,-500.0,0.00013698,2]
[339700754,1727872245225,-653.74,0.00013698,2]
[339700755,1727872245235,-500.0,0.00013698,2]
[339700756,1727872245244,-500.0,0.00013698,2]
[339700757,1727872245253,-507.02851309,0.00013698,2]
[339700758,1727872245263,-500.0,0.00013698,2]
[339700759,1727872245272,-500.0,0.00013698,2]
[339700760,1727872245282,-500.0,0.00013698,2]
[339700761,1727872245291,-500.0,0.00013698,2]
[339700762,1727872245301,-500.0,0.00013698,2]
[339700763,1727872245310,-500.0,0.00013698,2]
[339700764,1727872245320,-500.0,0.00013698,2]
[339700765,1727872245329,-933.11,0.00013698,2]
[339700766,1727872245338,-500.0,0.00013698,2]
[339700767,1727872245349,-500.0,0.00013698,2]
[339700768,1727872245358,-346.58918215,0.00013698,2]
[339700769,1727872245368,-500.0,0.00013698,2]
[339700770,1727872245377,-500.0,0.00013698,2]
[339700771,1727872245386,-500.0,0.00013698,2]
[339700772,1727872245396,-500.0,0.00013698,2]
[339700773,1727872245405,-494.3000156,0.00013698,2]
[339700774,1727872245415,-500.0,0.00013698,2]
[339700775,1727872245425,-500.0,0.00013698,2]
[339700776,1727872245435,-500.0,0.00013698,2]
[339700777,1727872245446,-593.5,0.00013698,2]
[339700778,1727872245456,-500.0,0.00013698,2]
[339700779,1727872245466,-640.65,0.00013698,2]
[339700780,1727872245475,-500.0,0.00013698,2]
[339700781,1727872245484,-500.0,0.00013698,2]
[339700782,1727872245496,-500.0,0.00013698,2]
[339700783,1727872245508,-500.0,0.00013698,2]
[339700784,1727872245520,-781.31,0.00013698,2]
[339700785,1727872245530,-500.0,0.00013698,2]
[339700786,1727872245542,-500.0,0.00013698,2]
[339700787,1727872245552,-500.0,0.00013698,2]
[339700788,1727872245563,-500.0,0.00013698,2]
[339700789,1727872245574,-656.43,0.00013698,2]
[339700790,1727872245585,-11.26077344,0.00013698,2]
[339700806,1727872279576,2000.0,0.000102,2]
[339700807,1727872326418,2000.0,0.00010201,2]
[339700818,1727872553462,200.0,0.00021,60]
[339700823,1727873367129,-238.963275,0.00012294,2]
[339700825,1727873367152,-238.963275,0.00012328,2]
[339700827,1727873367174,-238.963275,0.00012361,2]
[339700829,1727873367197,-238.963275,0.00012395,2]
[339700831,1727873367221,-238.963275,0.00012429,2]
[339700833,1727873367243,-238.963275,0.00012462,2]
[339700835,1727873367266,-238.963275,0.00012496,2]
[339700837,1727873367299,-238.963275,0.0001253,2]
[339700838,1727873367331,-238.963275,0.00012564,2]
[339700858,1727873431821,-238.963275,0.00012597,2]
[339700860,1727873431832,-238.963275,0.00012631,2]
[339700862,1727873431843,-238.963275,0.00012665,2]
[339700863,1727873431852,-238.963275,0.00012699,2]
[339700865,1727873431862,-238.963275,0.00012732,2]
[339700867,1727873431871,-238.963275,0.00012766,2]
[339700869,1727873431880,-238.963275,0.000128,2]
[339700871,1727873431890,-238.963275,0.00012833,2]
[339700873,1727873431900,-238.963275,0.00012867,2]
[339700875,1727873431911,-2850.00000001,0.00012877,2]
[339700877,1727873431920,-238.963275,0.00012901,2]
[339700879,1727873431930,-238.963275,0.00012935,2]
[339700881,1727873431940,-2474.70448862,0.000134,2]
[339700884,1727873431953,-300.0,0.00013499,2]
[339700886,1727873431963,-300.0,0.00013499,2]
[339700888,1727873431974,-358.45829892,0.000135,2]
[339700890,1727873431983,-27074.53,0.000135,2]
[339700891,1727873431994,-1000.0,0.000135,2]
[339700892,1727873432005,-755.852877,0.00013598,2]
[339700893,1727873432015,-500.0,0.00013673,2]
[339700894,1727873432026,-500.0,0.00013673,2]
[339700895,1727873432037,-500.0,0.00013673,2]
[339700896,1727873432048,-2757.94814145,0.00013678,2]
[339700928,1727873438038,-3855.23469483,0.00013678,2]
[339700978,1727873439789,-7498.21955212,0.00013678,2]
[339700980,1727873439800,-105017.54518843,0.00013688,2]
[339701140,1727873442906,-12768.8215,0.00013688,2]
[339701244,1727874233352,23000.0,0.00010201,2]
[339701245,1727874417137,-204.61249187,0.00013387,2]
[339701246,1727874427149,-300.0,0.00013387,2]
[339701247,1727874427171,-677.5894725,0.00013388,2]
[339701310,1727874632112,-300.0,0.00013387,2]
[339701312,1727874632121,-300.0,0.00013387,2]
[339701315,1727874632131,-7.14508962,0.00013388,2]
[339701320,1727874632169,-231.82710966,0.00013388,2]